fUSD/lending_fUSD_20250823
["ID","MTS","AMOUNT","RATE_DAILY","PERIOD"]
[380989120,1755929446310,-213.501401,0.00010979,2]
[380989121,1755929446320,-151.0,0.00010979,2]
[380989122,1755929446330,-151.0,0.00010979,2]
[380989123,1755929446340,-151.0,0.00010979,2]
[380989124,1755929446349,-151.0,0.00010979,2]
[380989125,1755929446361,-292.800609,0.00010979,2]
[380989126,1755929446371,-150.0,0.00010988,2]
[380989127,1755929446381,-319.6881485,0.00010989,2]
[380989128,1755929446390,-407.44567946,0.00010989,2]
[380989129,1755929446400,-495.20321042,0.00010989,2]
[380989130,1755929446410,-582.96074138,0.00010989,2]
[380989131,1755929446420,-670.71827234,0.00010989,2]
[380989132,1755929446430,-758.47580331,0.00010989,2]
[380989133,1755929446439,-846.23333427,0.00010989,2]
[380989134,1755929446449,-933.99086523,0.00010989,2]
[380989135,1755929446459,-1021.74839619,0.00010989,2]
[380989136,1755929446468,-153.1148287,0.00010993,2]
[380989137,1755929446478,-150.0,0.00010993,2]
[380989138,1755929446488,-150.0,0.00010993,2]
[380989139,1755929446497,-500.0,0.00010993,2]
[380989140,1755929446507,-150.0,0.00010993,2]
[380989141,1755929446516,-253.54447769,0.00010993,2]
[380989142,1755929446526,-500.0,0.00010993,2]
[380989143,1755929446536,-150.0,0.00010993,2]
[380989144,1755929446545,-159.481,0.00010998,2]
[380989145,1755929446555,-30980.69250676,0.00010998,2]
[380989146,1755929446564,-151.0,0.00010998,2]
[380989147,1755929446574,-151.0,0.00010998,2]
[380989148,1755929446583,-151.0,0.00010998,2]
[380989149,1755929446593,-151.0,0.00010998,2]
[380989150,1755929446602,-151.0,0.00010998,2]
[380989151,1755929446612,-194.124247,0.00010998,2]
[380989152,1755929446621,-194.124247,0.00010998,2]
[380989153,1755929446631,-194.124247,0.00010998,2]
[380989154,1755929446641,-194.124247,0.00010998,2]
[380989155,1755929446650,-158.627558,0.00010998,2]
[380989156,1755929446660,-151.0,0.00010998,2]
[380989157,1755929446669,-356.132422,0.00010998,2]
[380989158,1755929446678,-356.132422,0.00010998,2]
[380989159,1755929446687,-356.132422,0.00010998,2]
[380989160,1755929446697,-356.132422,0.00010998,2]
[380989161,1755929446706,-151.0,0.00010998,2]
[380989162,1755929446716,-151.0,0.00010998,2]
[380989163,1755929446726,-151.0,0.00010998,2]
[380989164,1755929446735,-151.0,0.00010998,2]
[380989165,1755929446744,-151.0,0.00010998,2]
[380989166,1755929446754,-151.0,0.00010998,2]
[380989167,1755929446763,-151.0,0.00010998,2]
[380989168,1755929446773,-299.684104,0.00010998,2]
[380989169,1755929446782,-491.080549,0.00010998,2]
[380989171,1755929446792,-151.0,0.00010998,2]
[380989173,1755929446802,-491.080549,0.00010998,2]
[380989175,1755929446812,-151.0,0.00010998,2]
[380989177,1755929446822,-151.0,0.00010998,2]
[380989179,1755929446831,-491.080549,0.00010998,2]
[380989181,1755929446840,-213.690528,0.00010998,2]
[380989183,1755929446850,-491.080549,0.00010998,2]
[380989185,1755929446859,-151.0,0.00010998,2]
[380989187,1755929446871,-151.0,0.00010998,2]
[380989190,1755929446883,-226.770622,0.00010998,2]
[380989192,1755929446893,-226.770622,0.00010998,2]
[380989194,1755929446903,-226.770622,0.00010998,2]
[380989195,1755929446911,-226.770622,0.00010998,2]
[380989197,1755929446922,-215.701509,0.00010998,2]
[380989199,1755929446931,-215.701509,0.00010998,2]
[380989201,1755929446942,-215.701509,0.00010998,2]
[380989204,1755929446953,-215.701509,0.00010998,2]
[380989206,1755929446963,-151.0,0.00010998,2]
[380989207,1755929446972,-151.0,0.00010998,2]
[380989210,1755929446982,-151.0,0.00010998,2]
[380989212,1755929446992,-151.0,0.00010998,2]
[380989214,1755929447002,-151.0,0.00010998,2]
[380989216,1755929447011,-151.0,0.00010998,2]
[380989218,1755929447023,-151.0,0.00010998,2]
[380989219,1755929447032,-151.0,0.00010998,2]
[380989222,1755929447041,-151.0,0.00010998,2]
[380989224,1755929447050,-151.0,0.00010998,2]
[380989226,1755929447060,-154.215304,0.00010998,2]
[380989228,1755929447069,-154.215304,0.00010998,2]
[380989230,1755929447079,-154.215304,0.00010998,2]
[380989232,1755929447089,-154.215304,0.00010998,2]
[380989233,1755929447099,-151.0,0.00010998,2]
[380989234,1755929447108,-213.501401,0.00010998,2]
[380989235,1755929447118,-213.501401,0.00010998,2]
[380989236,1755929447128,-213.501401,0.00010998,2]
[380989237,1755929447138,-213.501401,0.00010998,2]
[380989238,1755929447148,-295.000818,0.00010998,2]
[380989239,1755929447158,-151.0,0.00010998,2]
[380989240,1755929447167,-151.0,0.00010998,2]
[380989241,1755929447176,-151.0,0.00010998,2]
[380989242,1755929447185,-1561.0,0.00010998,2]
[380989243,1755929447194,-151.0,0.00010999,2]
[380989244,1755929447203,-151.0,0.00010999,2]
[380989245,1755929447213,-151.0,0.00010999,2]
[380989246,1755929447224,-293.09586,0.00010999,2]
[380989247,1755929447234,-151.0,0.00010999,2]
[380989248,1755929447243,-151.0,0.00010999,2]
[380989249,1755929447252,-151.0,0.00010999,2]
[380989250,1755929447261,-151.0,0.00010999,2]
[380989251,1755929447271,-151.0,0.00010999,2]
[380989252,1755929447282,-151.0,0.00010999,2]
[380989253,1755929447292,-166.546549,0.00010999,2]
[380989254,1755929447301,-151.0,0.00010999,2]
[380989255,1755929447311,-166.546549,0.00010999,2]
[380989256,1755929447323,-167.572657,0.00010999,2]
[380989257,1755929447332,-166.546549,0.00010999,2]
[380989258,1755929447343,-167.572657,0.00010999,2]
[380989259,1755929447352,-151.0,0.00010999,2]
[380989260,1755929447362,-166.546549,0.00010999,2]
[380989261,1755929447372,-151.0,0.00010999,2]
[380989262,1755929447381,-167.572657,0.00010999,2]
[380989263,1755929447390,-167.572657,0.00010999,2]
[380989264,1755929447400,-180.494929,0.00010999,2]
[380989265,1755929447409,-180.494929,0.00010999,2]
[380989266,1755929447418,-151.0,0.00010999,2]
[380989267,1755929447428,-180.494929,0.00010999,2]
[380989268,1755929447437,-180.494929,0.00010999,2]
[380989269,1755929447449,-160.256495,0.00010999,2]
[380989270,1755929447458,-160.256495,0.00010999,2]
[380989271,1755929447467,-160.256495,0.00010999,2]
[380989272,1755929447477,-160.256495,0.00010999,2]
[380989273,1755929447486,-151.0,0.00010999,2]
[380989274,1755929447496,-151.0,0.00010999,2]
[380989275,1755929447506,-152.087939,0.00010999,2]
[380989276,1755929447516,-151.0,0.00010999,2]
[380989277,1755929447526,-151.0,0.00010999,2]
[380989278,1755929447535,-151.0,0.00010999,2]
[380989279,1755929447545,-215.701509,0.00010999,2]
[380989280,1755929447555,-215.701509,0.00010999,2]
[380989281,1755929447565,-215.701509,0.00010999,2]
[380989282,1755929447574,-215.701509,0.00010999,2]
[380989283,1755929447584,-151.0,0.00010999,2]
[380989284,1755929447593,-151.0,0.00010999,2]
[380989285,1755929447602,-154.215304,0.00010999,2]
[380989286,1755929447613,-154.215304,0.00010999,2]
[380989287,1755929447623,-154.215304,0.00010999,2]
[380989288,1755929447632,-154.215304,0.00010999,2]
[380989289,1755929447643,-151.0,0.00010999,2]
[380989290,1755929447652,-213.501401,0.00010999,2]
[380989291,1755929447918,-213.501401,0.00010999,2]
[380989292,1755929447929,-213.501401,0.00010999,2]
[380989293,1755929447939,-213.501401,0.00010999,2]
[380989294,1755929447949,-3101.08726994,0.00011,2]
[380989295,1755929447958,-208400.7079574,0.00011,2]
[380989296,1755929447992,-954.71121119,0.00011,2]
[380989297,1755929448881,-151.0,0.00010978,2]
[380989298,1755929448892,-151.0,0.00010979,2]
[380989299,1755929448902,-10019.30599907,0.00011,2]
[380989301,1755929513546,-293.46496704,0.00010179,2]
[380989302,1755929518545,-276.24540064,0.00010179,2]
[380989303,1755929521971,-227.20320336,0.00010179,2]
[380989304,1755929523360,-1495.6251788,0.00010179,2]
[380989305,1755929531283,-400.0,0.00010179,2]
[380989306,1755929538830,-400.0,0.00010179,2]
[380989307,1755929543105,300.0,0.000139,5]
[380989308,1755929545198,300.0,0.000149,5]
[380989309,1755929547667,-297.2788384,0.00010179,2]
[380989310,1755929554159,-3.47241176,0.00010179,2]
[380989311,1755929554213,-241.14791612,0.0001047,2]
[380989315,1755929702268,200.0,0.000149,5]
[380989316,1755929799611,915.04,9.955e-05,2]
[380989319,1755929824209,200.0,9.955e-05,2]
[380989320,1755929892191,1668.68,0.00010036,2]
[380989321,1755929913427,-199.3576,0.00010502,2]
[380989322,1755929932136,-100.6424,0.00010502,2]
[380989323,1755929932172,-130.09493104,0.00010534,2]
[380989325,1755930032387,-289.22548186,0.00010499,2]
[380989326,1755930032414,-178.40392719,0.00010499,2]
[380989327,1755930032442,-176.43045451,0.00010499,2]
[380989328,1755930032469,-193.38412917,0.00010499,2]
[380989329,1755930032618,-5030.24818492,0.000105,2]
[380989330,1755930039977,-60949.85783157,0.000105,2]
[380989331,1755930047550,-17141.33776479,0.000105,2]
[380989332,1755930054297,-20325.15595783,0.000105,2]
[380989333,1755930061437,-35528.2085428,0.000105,2]
[380989334,1755930068973,-150.0,0.00010499,2]
[380989335,1755930069018,-6165.89794637,0.000105,2]
[380989336,1755930076008,-1200.0,0.000105,2]
[380989337,1755930083321,-400.0,0.000105,2]
[380989338,1755930090691,-437.45,0.000105,2]
[380989339,1755930098355,-400.0,0.000105,2]
[380989340,1755930104197,3181.17,0.0002876,120]
[380989341,1755930106714,-462.66,0.000105,2]
[380989342,1755930115879,-421.7,0.000105,2]
[380989343,1755930123921,-500.0,0.000105,2]
[380989344,1755930130621,-609.25394124,0.000105,2]
[380989345,1755930138367,-2714.12229577,0.000105,2]
[380989346,1755930146527,-500.0,0.000105,2]
[380989347,1755930155970,-373.52,0.000105,2]
[380989348,1755930162308,-301.92,0.000105,2]
[380989350,1755930166237,300.0,0.000139,5]
[380989351,1755930167458,300.0,0.000149,5]
[380989352,1755930170950,-302.81,0.000105,2]
[380989353,1755930172736,1267.19,9.945e-05,2]
[380989354,1755930178004,-350.404,0.000105,2]
[380989355,1755930184363,1000.0,9.945e-05,2]
[380989356,1755930185531,-264.05,0.000105,2]
[380989357,1755930195051,-200.0,0.000105,2]
[380989361,1755930453179,245.0,9.6e-05,2]
[380989362,1755930473756,600.0,0.000139,5]
[380989363,1755930475913,600.0,0.000149,5]
[380989364,1755930483083,250.0,9.85e-05,2]
[380989365,1755930483705,-161.11524865,0.00010145,2]
[380989367,1755930519205,-5.55475135,0.00010145,2]
[380989368,1755930519274,-189.3104973,0.00010493,2]
[380989370,1755930527489,-278.78,0.00010493,2]
[380989407,1755930631821,-373.52,0.0001049,2]
[380989409,1755930631831,-31.9095027,0.00010493,2]
[380989411,1755930631841,-341.99486664,0.00010493,2]
[380989413,1755930631852,-500.0,0.00010494,2]
[380989415,1755930631862,-300.0,0.00010499,2]
[380989417,1755930631873,-300.0,0.00010499,2]
[380989419,1755930631883,-61.45284777,0.00010499,2]
[380989421,1755930631894,-1106.265,0.00010499,2]
[380989425,1755930631922,-32.28215223,0.00010499,2]
[380989427,1755930631931,-150.0,0.00010499,2]
[380989429,1755930631941,-148233.48349543,0.000105,2]
[380989431,1755930631951,-24419.02757271,0.000105,2]
[380989433,1755930631960,-23327.54455397,0.000105,2]
[380989435,1755930631970,-300.0,0.00010506,2]
[380989437,1755930631980,-500.0,0.00010549,2]
[380989439,1755930631990,-600.0,0.000106,3]
[380989441,1755930632000,-150.99,0.000106,2]
[380989443,1755930632010,-150.99,0.000106,2]
[380989444,1755930632019,-299.99,0.000106,2]
[380989446,1755930632028,-500.0,0.00010604,2]
[380989448,1755930632038,-2500.0,0.00010651,2]
[380989450,1755930632047,-500.0,0.00010659,2]
[380989451,1755930632057,-611.14110189,0.00010667,2]
[380989452,1755930632066,-2500.0,0.00010667,2]
[380989453,1755930632076,-1200.0,0.000107,3]
[380989454,1755930632086,-317.51942099,0.00010718,2]
[380989456,1755930632096,-322.6107,0.00010738,2]
[380989457,1755930632106,-160.0,0.00010738,2]
[380989459,1755930632116,-277.35679052,0.00010738,2]
[380989461,1755930632126,-457.08484418,0.00010738,2]
[380989463,1755930632136,-1000.0,0.00010738,2]
[380989465,1755930632146,-189.38292865,0.00010738,2]
[380989501,1755930632506,-1000.0,0.00010738,2]
[380989502,1755930632516,-471.72717427,0.00010738,2]
[380989503,1755930632526,-151.0,0.00010738,2]
[380989504,1755930632535,-151.0,0.00010738,2]
[380989505,1755930632545,-5391.81600769,0.00010738,2]
[380989506,1755930632554,-748.26893567,0.00010766,2]
[380989507,1755930632564,-28343.9432,0.00010767,2]
[380989508,1755930632573,-1000.0,0.00010767,2]
[380989509,1755930632582,-330.01107666,0.0001078,2]
[380989510,1755930632591,-240.0,0.0001078,2]
[380989511,1755930632602,-22201.0129561,0.00010789,2]
[380989512,1755930632612,-5591.31319997,0.00010793,2]
[380989513,1755930632621,-173.06,0.000108,2]
[380989514,1755930632631,-332.08,0.000108,2]
[380989515,1755930632640,-539.5,0.000108,2]
[380989516,1755930632649,-1900.0,0.000108,3]
[380989517,1755930632658,-147.70088909,0.000108,2]
[380989518,1755930632716,-202.4578373,0.00010492,2]
[380989519,1755930632726,-2.29911091,0.000108,2]
[380989520,1755930632735,-243.72707017,0.000108,2]
[380989521,1755930632768,-295.29292983,0.000108,2]
[380989523,1755930632778,-202.94738875,0.00010802,2]
[380989524,1755930632889,-263.70556754,0.00010802,2]
[380989526,1755930637706,-111.34704371,0.00010802,2]
[380989527,1755930637717,-239.85295625,0.00010818,2]
[380989528,1755930637754,-170.14704375,0.00010818,2]
[380989529,1755930637763,-500.0,0.00010822,2]
[380989530,1755930637773,-167.11943786,0.00010848,2]
[380989531,1755930637829,-2020.78547122,0.00010848,2]
[380989532,1755930637838,-603.0,0.00010867,2]
[380989533,1755930637848,-250.0,0.00010874,2]
[380989535,1755930637857,-4728.2466,0.00010887,2]
[380989537,1755930637866,-950.26308952,0.00010896,2]
[380989539,1755930637876,-5000.0,0.000109,2]
[380989541,1755930637885,-551.8356426,0.000109,2]
[380989543,1755930637894,-408.37,0.000109,2]
[380989545,1755930637903,-173.7,0.000109,2]
[380989547,1755930637913,-408.48,0.000109,2]
[380989549,1755930637923,-286.16039706,0.000109,2]
[380989551,1755930637933,-440.40030294,0.000109,2]
[380989553,1755930637941,-2500.0,0.000109,3]
[380989555,1755930637951,-159.72613975,0.000109,2]
[380989558,1755930637960,-176.05255946,0.000109,2]
[380989562,1755930637969,-150.0,0.00010959,2]
[380989564,1755930637978,-1165.15208422,0.00010961,2]
[380989567,1755930637988,-500.0,0.00010973,2]
[380989570,1755930637997,-500.0,0.00010973,2]
[380989572,1755930638006,-500.0,0.00010973,2]
[380989574,1755930638016,-2243.9288923,0.00010975,2]
[380989576,1755930638025,-15020.9536537,0.00010987,2]
[380989578,1755930638034,-6798.9998484,0.00010988,2]
[380989580,1755930638044,-542.9468241,0.00010988,2]
[380989582,1755930638053,-171.9585799,0.00010988,2]
[380989584,1755930638062,-151.928,0.00010991,2]
[380989586,1755930638071,-3159.78,0.00010991,2]
[380989587,1755930638080,-150.0,0.00010993,2]
[380989588,1755930638089,-150.0,0.00010993,2]
[380989589,1755930638097,-150.0,0.00010993,2]
[380989590,1755930638111,-150.0,0.00010993,2]
[380989591,1755930638128,-150.0,0.00010993,2]
[380989592,1755930638137,-500.0,0.00010993,2]
[380989593,1755930638147,-150.0,0.00010993,2]
[380989594,1755930638156,-150.0,0.00010993,2]
[380989595,1755930638165,-150.0,0.00010993,2]
[380989596,1755930638175,-150.0,0.00010993,2]
[380989597,1755930638184,-150.0,0.00010993,2]
[380989598,1755930638194,-500.0,0.00010993,2]
[380989599,1755930638203,-500.0,0.00010993,2]
[380989600,1755930638213,-150.0,0.00010993,2]
[380989601,1755930638222,-150.0,0.00010993,2]
[380989602,1755930638232,-150.5876774,0.00010993,2]
[380989603,1755930638241,-1343.0,0.00010993,2]
[380989604,1755930638474,-500.0,0.00010993,2]
[380989605,1755930638548,-150.0,0.00010993,2]
[380989606,1755930638558,-500.0,0.00010993,2]
[380989607,1755930638568,-500.0,0.00010993,2]
[380989608,1755930638578,-150.0,0.00010993,2]
[380989609,1755930638587,-230.58304184,0.00010993,2]
[380989610,1755930638597,-733.0,0.00010993,2]
[380989611,1755930638607,-500.0,0.00010993,2]
[380989612,1755930638617,-500.0,0.00010993,2]
[380989613,1755930638626,-150.0,0.00010993,2]
[380989614,1755930638635,-696.0,0.00010993,2]
[380989615,1755930638645,-736.0,0.00010993,2]
[380989616,1755930638656,-150.0,0.00010999,2]
[380989617,1755930638665,-244.9865392,0.00010999,2]
[380989618,1755930638674,-150.0,0.00010999,2]
[380989619,1755930638684,-150.0,0.00010999,2]
[380989620,1755930638693,-150.0,0.00010999,2]
[380989621,1755930638702,-150.0,0.00010999,2]
[380989622,1755930638712,-150.0,0.00010999,2]
[380989623,1755930638721,-243.169796,0.00010999,2]
[380989624,1755930638730,-151.0,0.00010999,2]
[380989625,1755930638740,-151.0,0.00010999,2]
[380989626,1755930638749,-1550.54363497,0.00010999,2]
[380989627,1755930638758,-40557.46122542,0.00010999,2]
[380989628,1755930638770,-3276.08754,0.00010999,2]
[380989629,1755930638859,-909435.59632397,0.00010999,2]
[380989630,1755930638870,-1511244.89875314,0.00011,2]
[380989631,1755930638880,-9422.72,0.00011,2]
[380989632,1755930638890,-161.0,0.00011,2]
[380989633,1755930638899,-161.0,0.00011,2]
[380989634,1755930638908,-140667.85673316,0.00011,2]
[380989635,1755930638917,-151.48,0.00011,2]
[380989636,1755930638926,-210.39,0.00011,2]
[380989637,1755930638935,-212.16,0.00011,2]
[380989638,1755930638944,-216.09,0.00011,2]
[380989639,1755930638953,-151.0,0.00011,2]
[380989640,1755930638963,-151.0,0.00011,2]
[380989641,1755930638980,-151.0,0.00011,2]
[380989642,1755930638989,-151.0,0.00011,2]
[380989643,1755930639002,-151.0,0.00011,2]
[380989644,1755930639012,-151.0,0.00011,2]
[380989645,1755930639021,-151.0,0.00011,2]
[380989646,1755930639030,-151.0,0.00011,2]
[380989647,1755930639040,-151.0,0.00011,2]
[380989648,1755930639049,-151.0,0.00011,2]
[380989649,1755930639059,-151.0,0.00011,2]
[380989650,1755930639069,-151.0,0.00011,2]
[380989651,1755930639079,-151.0,0.00011,2]
[380989652,1755930639088,-151.0,0.00011,2]
[380989653,1755930639097,-151.0,0.00011,2]
[380989654,1755930639107,-151.0,0.00011,2]
[380989655,1755930639116,-151.0,0.00011,2]
[380989656,1755930639126,-151.0,0.00011,2]
[380989657,1755930639135,-153.164968,0.00011,2]
[380989658,1755930639145,-151.0,0.00011,2]
[380989659,1755930639154,-296.689713,0.00011,2]
[380989660,1755930639163,-151.0,0.00011,2]
[380989661,1755930639173,-151.0,0.00011,2]
[380989662,1755930639182,-151.0,0.00011,2]
[380989663,1755930639191,-151.0,0.00011,2]
[380989664,1755930639201,-151.0,0.00011,2]
[380989665,1755930639210,-151.0,0.00011,2]
[380989666,1755930639219,-287.094368,0.00011,2]
[380989667,1755930639229,-151.0,0.00011,2]
[380989668,1755930639239,-151.0,0.00011,2]
[380989669,1755930639248,-151.0,0.00011,2]
[380989670,1755930639257,-151.0,0.00011,2]
[380989671,1755930639269,-151.0,0.00011,2]
[380989672,1755930639279,-151.0,0.00011,2]
[380989673,1755930639288,-151.0,0.00011,2]
[380989674,1755930639297,-151.0,0.00011,2]
[380989675,1755930639307,-151.0,0.00011,2]
[380989676,1755930639316,-151.0,0.00011,2]
[380989677,1755930639326,-151.0,0.00011,2]
[380989678,1755930639337,-151.0,0.00011,2]
[380989679,1755930639347,-151.0,0.00011,2]
[380989680,1755930639356,-258.806712,0.00011,2]
[380989681,1755930639366,-151.0,0.00011,2]
[380989682,1755930639375,-259.183749,0.00011,2]
[380989683,1755930639385,-151.0,0.00011,2]
[380989684,1755930639394,-151.0,0.00011,2]
[380989685,1755930639404,-151.0,0.00011,2]
[380989686,1755930639415,-151.0,0.00011,2]
[380989687,1755930639425,-151.0,0.00011,2]
[380989688,1755930639435,-151.0,0.00011,2]
[380989689,1755930639444,-151.0,0.00011,2]
[380989690,1755930639453,-151.0,0.00011,2]
[380989691,1755930639463,-151.0,0.00011,2]
[380989693,1755930639472,-151.0,0.00011,2]
[380989694,1755930639481,-151.0,0.00011,2]
[380989695,1755930639490,-151.0,0.00011,2]
[380989696,1755930639500,-151.0,0.00011,2]
[380989697,1755930639510,-151.0,0.00011,2]
[380989698,1755930639519,-151.0,0.00011,2]
[380989699,1755930639528,-151.0,0.00011,2]
[380989700,1755930639538,-151.0,0.00011,2]
[380989701,1755930639547,-151.0,0.00011,2]
[380989702,1755930639556,-151.0,0.00011,2]
[380989703,1755930639567,-151.0,0.00011,2]
[380989704,1755930639576,-151.0,0.00011,2]
[380989705,1755930639586,-151.0,0.00011,2]
[380989706,1755930639596,-151.0,0.00011,2]
[380989707,1755930639605,-151.0,0.00011,2]
[380989708,1755930639615,-151.0,0.00011,2]
[380989709,1755930639625,-225.051964,0.00011,2]
[380989710,1755930639634,-151.0,0.00011,2]
[380989711,1755930639643,-151.0,0.00011,2]
[380989712,1755930639652,-151.0,0.00011,2]
[380989713,1755930639662,-1456247.80698036,0.00011,2]
[380989714,1755930639671,-151.0,0.00011,2]
[380989715,1755930639680,-151.0,0.00011,2]
[380989716,1755930639690,-151.0,0.00011,2]
[380989717,1755930639699,-151.0,0.00011,2]
[380989718,1755930639708,-151.0,0.00011,2]
[380989719,1755930639718,-151.0,0.00011,2]
[380989720,1755930639728,-151.0,0.00011,2]
[380989721,1755930639737,-151.0,0.00011,2]
[380989722,1755930639747,-151.0,0.00011,2]
[380989723,1755930639756,-151.0,0.00011,2]
[380989724,1755930639765,-151.0,0.00011,2]
[380989725,1755930639774,-151.0,0.00011,2]
[380989726,1755930639783,-210.812676,0.00011,2]
[380989727,1755930639792,-151.0,0.00011,2]
[380989728,1755930639801,-151.0,0.00011,2]
[380989729,1755930639810,-292.940564,0.00011,2]
[380989730,1755930639820,-151.0,0.00011,2]
[380989731,1755930639829,-151.0,0.00011,2]
[380989732,1755930639839,-151.0,0.00011,2]
[380989733,1755930639848,-151.0,0.00011,2]
[380989735,1755930639857,-151.0,0.00011,2]
[380989737,1755930639866,-151.0,0.00011,2]
[380989739,1755930639876,-151.0,0.00011,2]
[380989741,1755930639885,-151.0,0.00011,2]
[380989743,1755930639894,-151.0,0.00011,2]
[380989744,1755930639903,-151.0,0.00011,2]
[380989746,1755930639913,-151.0,0.00011,2]
[380989748,1755930639922,-151.0,0.00011,2]
[380989750,1755930639931,-151.0,0.00011,2]
[380989751,1755930639941,-151.0,0.00011,2]
[380989752,1755930639950,-282.059368,0.00011,2]
[380989753,1755930639959,-151.0,0.00011,2]
[380989754,1755930639968,-151.0,0.00011,2]
[380989755,1755930639978,-259.470984,0.00011,2]
[380989756,1755930639987,-151.0,0.00011,2]
[380989757,1755930639996,-151.0,0.00011,2]
[380989758,1755930640006,-151.0,0.00011,2]
[380989759,1755930640015,-219.418313,0.00011,2]
[380989760,1755930640025,-151.0,0.00011,2]
[380989761,1755930640035,-151.0,0.00011,2]
[380989762,1755930640044,-151.0,0.00011,2]
[380989763,1755930640053,-151.0,0.00011,2]
[380989764,1755930640062,-151.0,0.00011,2]
[380989765,1755930640072,-151.0,0.00011,2]
[380989766,1755930640081,-151.0,0.00011,2]
[380989767,1755930640091,-151.0,0.00011,2]
[380989768,1755930640101,-151.0,0.00011,2]
[380989769,1755930640111,-151.0,0.00011,2]
[380989770,1755930640121,-196.43222,0.00011,2]
[380989771,1755930640130,-151.0,0.00011,2]
[380989772,1755930640139,-151.0,0.00011,2]
[380989773,1755930640148,-196.43222,0.00011,2]
[380989774,1755930640158,-196.43222,0.00011,2]
[380989775,1755930640167,-196.43222,0.00011,2]
[380989776,1755930640176,-196.43222,0.00011,2]
[380989777,1755930640186,-196.43222,0.00011,2]
[380989778,1755930640196,-196.43222,0.00011,2]
[380989779,1755930640206,-196.43222,0.00011,2]
[380989780,1755930640215,-196.43222,0.00011,2]
[380989781,1755930640225,-196.43222,0.00011,2]
[380989782,1755930640234,-151.0,0.00011,2]
[380989783,1755930640243,-196.43222,0.00011,2]
[380989784,1755930640253,-151.0,0.00011,2]
[380989785,1755930640265,-196.43222,0.00011,2]
[380989786,1755930640274,-151.0,0.00011,2]
[380989787,1755930640284,-151.0,0.00011,2]
[380989788,1755930640293,-196.43222,0.00011,2]
[380989789,1755930640302,-196.43222,0.00011,2]
[380989790,1755930640313,-196.43222,0.00011,2]
[380989791,1755930640323,-196.43222,0.00011,2]
[380989792,1755930640334,-151.0,0.00011,2]
[380989793,1755930640343,-151.0,0.00011,2]
[380989794,1755930640352,-150.0,0.00011,2]
[380989795,1755930640364,-151.0,0.00011,2]
[380989796,1755930640374,-151.0,0.00011,2]
[380989797,1755930640383,-151.0,0.00011,2]
[380989798,1755930640392,-151.0,0.00011,2]
[380989799,1755930640401,-151.0,0.00011,2]
[380989800,1755930640410,-151.0,0.00011,2]
[380989801,1755930640420,-285.142712,0.00011,2]
[380989802,1755930640430,-4315571.56977154,0.00011,2]